bitfinex/quotes_BTCUSD_20260310
["timestamp","ask_amount","ask_price","bid_price","bid_amount"]
[1773136742493,0.03,71064.0,71055.0,0.28909036]
[1773136742712,0.03,71064.0,71055.0,0.11775436]
[1773136742916,0.03,71062.0,71054.0,0.07036901]
[1773136743280,0.03,71062.0,71054.0,0.35945937]
[1773136744361,0.03,71061.0,71054.0,0.35945937]
[1773136744585,0.07055813,71065.0,71054.0,0.35945937]
[1773136744905,0.07055813,71065.0,71057.0,0.00022]
[1773136745261,0.0002,71065.0,71057.0,0.28821356]
[1773136745554,0.0302,71065.0,71057.0,0.28821356]
[1773136745759,0.07035721,71066.0,71057.0,0.28821356]
[1773136745957,0.00274,73143.0,71057.0,0.28821356]
[1773136745958,0.07057876,71075.0,71059.0,0.28799356]
[1773136746253,0.07057876,71075.0,71057.0,0.00022]
[1773136746254,0.07057876,71075.0,71061.0,0.33608637]
[1773136746458,0.03,71074.0,71062.0,0.07036109]
[1773136748142,0.03,71076.0,71066.0,0.04809281]
[1773136748296,0.07034161,71082.0,71068.0,0.04809281]
[1773136748497,0.07034033,71083.0,71066.0,0.05282915]
[1773136748498,0.07034033,71083.0,71071.0,0.40643855]
[1773136748719,0.07034033,71083.0,71072.0,0.33608637]
[1773136749289,0.10034129,71082.0,71072.0,0.33608637]
[1773136749847,0.0302016,71080.0,71072.0,0.33608637]
[1773136750570,0.03,71078.0,71072.0,0.28758095]
[1773136750742,0.03,71078.0,71072.0,0.07035046]
[1773136750949,0.07054493,71080.0,71072.0,0.07035046]
[1773136751889,0.03,71079.0,71072.0,0.07035046]
[1773136752464,0.03,71079.0,71071.0,0.07035119]
[1773136752658,0.03,71078.0,71071.0,0.07035119]
[1773136753221,0.0002016,71080.0,71072.0,0.28799356]
[1773136753380,0.0002016,71080.0,71073.0,0.05008635]
[1773136753588,0.07033846,71085.0,71075.0,0.05008635]
[1773136753810,0.07033846,71085.0,71076.0,0.28799356]
[1773136753811,0.03,71085.0,71076.0,0.28799356]
[1773136754729,0.03,71085.0,71077.0,0.07034624]
[1773136754906,0.1003385,71085.0,71076.0,0.3583398]
[1773136755751,0.1003385,71085.0,71076.0,0.07034624]
[1773136756165,0.40290822,71085.0,71076.0,0.07034624]
[1773136756461,0.1003385,71085.0,71076.0,0.07034624]
[1773136756711,0.1003385,71085.0,71075.0,0.07034747]
[1773136758769,0.1005385,71085.0,71075.0,0.07034747]
[1773136759750,0.1005385,71085.0,71074.0,0.26584414]
[1773136759958,0.1005385,71085.0,71074.0,0.33619137]
[1773136760672,0.1005385,71085.0,71074.0,0.26584414]
[1773136760877,0.03,71083.0,71073.0,0.07034957]
[1773136762281,0.03,71082.0,71073.0,0.07034957]
[1773136762922,0.03,71080.0,71073.0,0.35834313]
[1773136764144,0.03,71080.0,71073.0,0.28799356]
[1773136764804,0.03,71078.0,71063.0,0.07035985]
[1773136765111,0.07642231,71076.0,71062.0,0.28799356]
[1773136765336,0.07642231,71076.0,71065.0,0.00022]
[1773136765545,0.03,71076.0,71065.0,0.28821356]
[1773136766659,0.30256972,71075.0,71065.0,0.00022]
[1773136766876,0.33256972,71074.0,71065.0,0.00022]
[1773136767073,0.33256972,71072.0,71065.0,0.00022]
[1773136768466,0.33356972,71072.0,71065.0,0.00022]
[1773136769327,0.03,71070.0,71065.0,0.00022]
[1773136769649,0.33256972,71070.0,71065.0,0.00022]
[1773136771313,0.03,71068.0,71065.0,0.00022]
[1773136772057,0.03,71068.0,71065.0,0.00022]
[1773136772263,0.03,71068.0,71057.0,1e-08]
[1773136772436,0.03,71066.0,71050.0,0.00045]
[1773136772636,0.03,71062.0,71050.0,0.00045]
[1773136772957,0.03,71062.0,71050.0,0.28844356]
[1773136773172,0.03,71062.0,71053.0,0.05008635]
[1773136773358,0.03,71060.0,71054.0,0.28799356]
[1773136776810,0.03,71058.0,71054.0,0.28799356]
[1773136777541,0.07036406,71059.0,71054.0,0.33807991]
[1773136778667,0.07036406,71059.0,71054.0,0.28799356]
[1773136778906,0.1003601,71063.0,71054.0,0.28799356]
[1773136781295,0.1003601,71063.0,71052.0,0.00022]
[1773136783097,0.39540455,71063.0,71052.0,0.00022]
[1773136783672,0.05003314,71060.0,71052.0,0.00022]
[1773136783874,0.03,71057.0,71052.0,0.00022]
[1773136784072,0.32504445,71057.0,71052.0,0.00022]
[1773136785549,0.03,71055.0,71052.0,0.00022]
[1773136787301,0.03,71053.0,71052.0,0.00022]
[1773136787889,0.10037,71053.0,71052.0,0.00022]
[1773136788082,0.07036802,71055.0,71052.0,0.00022]
[1773136788487,0.07036505,71058.0,71054.0,0.04619144]
[1773136788681,0.07036505,71058.0,71054.0,0.36637304]
[1773136789111,0.07036505,71058.0,71052.0,0.00022]
[1773136789112,0.00023,71100.0,71053.0,0.04619144]
[1773136789328,0.00023,71100.0,71082.0,0.04619144]
[1773136789329,1e-08,71098.0,71082.0,0.04619144]
[1773136789504,1e-08,71098.0,71080.0,0.05280858]
[1773136789505,1e-08,71098.0,71085.0,0.3201816]
[1773136789712,1e-08,71098.0,71077.0,0.23176582]
[1773136789713,1e-08,71098.0,71086.0,0.36906963]
[1773136789924,1e-08,71098.0,71087.0,0.07033634]
[1773136790330,1e-08,71098.0,71087.0,0.11922437]
[1773136791137,0.0002825,71130.0,71111.0,0.35121131]
[1773136791340,0.0002825,71130.0,71116.0,0.04888803]
[1773136791553,0.0002825,71130.0,71119.0,0.30232328]
[1773136791756,0.0002825,71130.0,71120.0,0.04888803]
[1773136791958,0.0002825,71130.0,71122.0,0.04888803]
[1773136792166,0.0002825,71130.0,71119.0,0.0703039]
[1773136792167,0.35177509,71127.0,71114.0,0.07030929]
[1773136792372,0.03,71127.0,71115.0,0.30232328]
[1773136792575,0.03,71127.0,71118.0,0.04888803]
[1773136792781,0.03,71127.0,71120.0,0.04888803]
[1773136793160,0.03,71126.0,71122.0,0.30232328]
[1773136793386,0.03,71126.0,71123.0,0.04888803]
[1773136793888,0.03,71126.0,71122.0,0.30232328]
[1773136794029,0.0002825,71130.0,71123.0,0.07030074]
[1773136795447,0.0002825,71130.0,71122.0,0.14060243]
[1773136795705,0.0002825,71130.0,71121.0,0.07030074]
[1773136795706,0.0002825,71130.0,71123.0,0.07030074]
[1773136796086,0.03,71126.0,71102.0,0.0703215]
[1773136796305,0.05029557,71130.0,71102.0,0.0703215]
[1773136796306,0.37178816,71123.0,71102.0,0.0703215]
[1773136796501,0.40097775,71124.0,71102.0,0.0703215]
[1773136796502,0.32177509,71117.0,71102.0,0.0703215]
[1773136796664,0.37178816,71113.0,71101.0,0.0703215]
[1773136796866,0.03,71110.0,71102.0,0.0703215]
[1773136797934,0.03,71109.0,71102.0,0.0703215]
[1773136798917,0.03,71108.0,71102.0,0.0703215]
[1773136799974,0.03,71107.0,71102.0,0.0703215]
[1773136800273,0.03,71107.0,71102.0,0.0713215]
[1773136800453,0.03,71107.0,71102.0,0.0703215]
[1773136800784,0.03,71107.0,71102.0,0.0713215]
[1773136801004,0.03,71109.0,71102.0,0.11920953]
[1773136801212,0.03,71109.0,71100.0,0.0705515]
[1773136801213,0.03,71107.0,71100.0,0.00023]
[1773136801417,0.40178816,71105.0,71091.0,0.07033148]
[1773136801699,0.35177509,71105.0,71091.0,0.07033148]
[1773136801872,0.40178816,71105.0,71091.0,0.07033148]
[1773136802090,0.07031531,71109.0,71091.0,0.07033148]
[1773136802091,0.03,71103.0,71091.0,0.07033148]
[1773136802283,0.03,71101.0,71091.0,0.07033148]
[1773136802456,0.03,71099.0,71091.0,0.07033148]
[1773136802657,0.35177509,71099.0,71091.0,0.07033148]
[1773136804470,0.03,71102.0,71091.0,0.04888803]
[1773136804690,0.0002,71107.0,71093.0,0.04888803]
[1773136804890,0.0002,71107.0,71090.0,0.07033338]
[1773136804891,0.05001307,71120.0,71096.0,0.32651191]
[1773136805091,0.31117518,71119.0,71099.0,0.04888803]
[1773136805293,0.03,71116.0,71101.0,0.04888803]
[1773136805614,0.34117518,71114.0,71101.0,0.04888803]
[1773136806336,0.34117518,71114.0,71103.0,0.32651191]
[1773136806337,0.03,71114.0,71103.0,0.32651191]
[1773136806538,0.03,71113.0,71106.0,0.04888803]
[1773136806686,0.03,71113.0,71105.0,0.07031854]
[1773136807539,0.34117518,71117.0,71105.0,0.07031854]
[1773136808046,0.34117518,71117.0,71106.0,0.04888803]
[1773136808195,0.37097775,71124.0,71106.0,0.04888803]
[1773136808397,0.31117518,71126.0,71110.0,0.04888803]
[1773136808639,0.03023,71125.0,71112.0,0.32651191]
[1773136808849,0.03023,71125.0,71113.0,0.04888803]
[1773136809914,0.34117518,71124.0,71109.0,0.11493259]
[1773136810149,0.34117518,71124.0,71110.0,0.04461801]
[1773136810950,0.34117518,71124.0,71111.0,0.0703126]
[1773136811138,0.34117518,71124.0,71111.0,0.11493061]
[1773136811344,0.34117518,71124.0,71112.0,0.04461801]
[1773136813178,0.34117518,71124.0,71113.0,0.07031063]
[1773136813758,0.34117518,71124.0,71113.0,0.11492864]
[1773136814160,0.00043,71125.0,71114.0,0.32651191]
[1773136814161,0.03,71123.0,71114.0,0.32651191]
[1773136814460,0.00043,71125.0,71117.0,0.32651191]
[1773136814817,0.00043,71125.0,71113.0,0.07031063]
[1773136814818,0.00562,71132.0,71120.0,0.32651191]
[1773136815018,0.00562,71132.0,71113.0,0.07031063]
[1773136815019,0.00562,71132.0,71122.0,0.04461801]
[1773136815274,0.00562,71132.0,71105.0,0.07031854]
[1773136815275,0.31117518,71122.0,71105.0,0.07031854]
[1773136815412,0.001,71123.0,71100.0,0.15843854]
[1773136815413,0.03,71113.0,71101.0,0.07032249]
[1773136815618,0.001,71123.0,71101.0,0.07032249]
[1773136815619,0.31117518,71108.0,71101.0,0.07032249]
[1773136815820,0.34117518,71105.0,71096.0,0.07032744]
[1773136817466,0.03,71104.0,71096.0,0.07032744]
[1773136818438,0.03,71103.0,71096.0,0.07032744]
[1773136818857,0.34117518,71103.0,71096.0,0.07032744]
[1773136820272,0.03,71106.0,71096.0,0.07032744]
[1773136820789,0.03,71106.0,71096.0,0.11494545]
[1773136822019,0.41149335,71106.0,71096.0,0.07032744]
[1773136822374,0.03,71104.0,71096.0,0.07132744]
[1773136822580,0.34117518,71104.0,71096.0,0.07132744]
[1773136823013,0.34117518,71104.0,71096.0,0.07032744]
[1773136823252,0.34117518,71104.0,71096.0,0.07132744]
[1773136823696,0.04527003,71099.0,71085.0,0.07033832]
[1773136823864,0.38644521,71098.0,71085.0,0.07033832]
[1773136824891,0.03,71092.0,71081.0,0.0002533]
[1773136825091,0.31117518,71087.0,71080.0,0.07034296]
[1773136825283,0.03,71086.0,71080.0,0.07034296]
[1773136825886,0.03,71086.0,71078.0,0.07034327]
[1773136826337,0.07033242,71091.0,71078.0,0.07034327]
[1773136826338,0.0002,71107.0,71079.0,0.32651191]
[1773136826490,0.31117518,71106.0,71084.0,0.32651191]
[1773136826690,0.31117518,71106.0,71087.0,0.04461801]
[1773136826929,0.31117518,71106.0,71080.0,0.65919999]
[1773136826930,0.31117518,71106.0,71090.0,0.32651191]
[1773136827128,0.31117518,71106.0,71093.0,0.04461801]
[1773136827362,0.03,71105.0,71093.0,0.32651191]
[1773136827512,0.03,71105.0,71094.0,0.04461801]
[1773136827713,0.03,71105.0,71083.0,0.00022]
[1773136827714,0.03,71105.0,71096.0,0.04461801]
[1773136827949,0.0002,71107.0,71099.0,0.04461801]
[1773136828124,0.0002,71107.0,71101.0,0.04461801]
[1773136828322,0.03,71103.0,71087.0,0.07033634]
[1773136828523,0.34117518,71101.0,71088.0,0.07033443]
[1773136828727,0.34117518,71101.0,71090.0,0.001]
[1773136829253,0.34117518,71101.0,71088.0,0.07033443]
[1773136829612,0.03,71097.0,71088.0,0.07033443]
[1773136830021,0.03,71097.0,71086.0,0.07033634]
[1773136830806,0.03,71095.0,71085.0,0.07033634]
[1773136831006,0.03,71091.0,71083.0,0.07056019]
[1773136831421,0.03,71089.0,71083.0,0.00022]
[1773136831622,0.03,71089.0,71081.0,0.07034174]
[1773136831623,0.34117518,71089.0,71081.0,0.07034174]
[1773136832046,0.41150959,71089.0,71077.0,0.07034624]
[1773136832510,0.34117518,71089.0,71077.0,0.11496425]
[1773136832702,0.34117518,71089.0,71083.0,0.001]
[1773136833060,0.34117518,71089.0,71077.0,0.11496425]
[1773136833482,0.34117518,71089.0,71077.0,0.11596425]
[1773136834211,0.34117518,71089.0,71083.0,0.07055999]
[1773136835501,0.34117518,71089.0,71083.0,0.00122]
[1773136835882,0.41151003,71089.0,71083.0,0.00122]
[1773136836716,0.41151003,71089.0,71075.0,1e-08]
[1773136836717,0.34795617,71085.0,71075.0,1e-08]
[1773136836925,0.04527003,71078.0,71071.0,1e-08]
[1773136837096,0.34795617,71077.0,71071.0,0.07035161]
[1773136837297,0.03,71075.0,71067.0,0.07035605]
[1773136837521,0.07033485,71089.0,71067.0,0.07035605]
[1773136837522,0.03,71073.0,71067.0,0.07035605]
[1773136838811,0.03,71073.0,71067.0,0.07135605]
[1773136839205,0.34795617,71072.0,71065.0,9.87e-05]
[1773136839471,0.03,71068.0,71057.0,0.07036505]
[1773136839598,0.34795617,71066.0,71057.0,0.07036505]
[1773136841037,0.4183133,71066.0,71065.0,0.001]
[1773136841242,0.31795617,71065.0,71057.0,0.07036505]
[1773136841445,0.03,71064.0,71056.0,0.07036667]
[1773136841641,0.03,71062.0,71056.0,0.07036667]
[1773136841845,0.03,71062.0,71054.0,0.07036862]
[1773136842049,0.03,71060.0,71052.0,0.07059075]
[1773136842267,0.03,71058.0,71052.0,0.07059098]
[1773136842462,0.34795617,71058.0,71052.0,0.00022]
[1773136843214,0.34795617,71058.0,71049.0,0.07059335]
[1773136843215,0.03,71056.0,71049.0,0.00022]
[1773136843425,0.03,71056.0,71049.0,0.07059354]
[1773136843426,0.34795617,71056.0,71049.0,0.07059354]
[1773136843629,0.03,71056.0,71049.0,0.07059354]
[1773136843867,0.07035515,71068.0,71052.0,0.30993018]
[1773136844074,0.38831095,71069.0,71055.0,0.03997771]
[1773136844286,0.03,71068.0,71055.0,0.03997771]
[1773136844499,0.03,71068.0,71049.0,0.07059354]
[1773136844500,0.03,71068.0,71056.0,0.03997771]
[1773136844713,0.03,71066.0,71052.0,0.34990789]
[1773136844922,0.34795617,71066.0,71052.0,0.34990789]
[1773136845320,0.03,71064.0,71053.0,0.07037]
[1773136845534,0.34795617,71064.0,71053.0,0.07037]
[1773136847522,0.3573543,71062.0,71053.0,0.07037]
[1773136848210,0.3573543,71062.0,71053.0,0.07022245]
[1773136848926,0.3573543,71062.0,71053.0,0.07044245]
[1773136850033,0.42771556,71062.0,71053.0,0.07044245]
[1773136850884,0.3573543,71062.0,71053.0,0.07044245]
[1773136852124,0.42771545,71062.0,71053.0,0.00022]
[1773136853851,0.03,71061.0,71053.0,0.00022]
[1773136854441,0.03,71061.0,71054.0,0.07036901]
[1773136854839,0.07036121,71062.0,71054.0,0.07036901]
[1773136855886,0.03,71062.0,71054.0,0.07036901]
[1773136857051,0.03,71061.0,71054.0,0.07036901]
[1773136857260,0.39793281,71075.0,71055.0,0.32307748]
[1773136857487,0.07033724,71087.0,71062.0,0.03661799]
[1773136857488,0.39769262,71085.0,71062.0,0.03661799]
[1773136857616,0.3273543,71084.0,71065.0,0.32307748]
[1773136857824,0.3273543,71084.0,71055.0,0.16556618]
[1773136857825,0.36463659,71084.0,71068.0,0.03661799]
[1773136858025,0.03,71081.0,71068.0,0.03661799]
[1773136858290,0.3573543,71081.0,71068.0,0.03661799]
[1773136858701,0.39463659,71081.0,71067.0,0.32307748]
[1773136858922,0.03,71077.0,71065.0,0.07035812]
[1773136859133,0.3573543,71075.0,71065.0,0.07035812]
[1773136859748,0.03,71075.0,71065.0,0.07035812]
[1773136859955,0.03,71075.0,71065.0,0.43005359]
[1773136860356,0.03,71074.0,71065.0,0.43005359]
[1773136860807,0.3273543,71080.0,71067.0,0.32307748]
[1773136861028,0.3976977,71080.0,71069.0,0.07035416]
[1773136861411,0.03,71079.0,71069.0,0.07035416]
[1773136862021,0.03,71079.0,71069.0,0.39343164]
[1773136862182,0.03,71079.0,71070.0,0.03661799]
[1773136862404,0.03,71079.0,71066.0,0.07035416]
[1773136862405,0.3273543,71075.0,71059.0,0.16556618]
[1773136862602,0.3273543,71075.0,71054.0,0.27880494]
[1773136862603,0.03,71068.0,71055.0,0.07036604]
[1773136863060,0.03,71068.0,71056.0,0.32307748]
[1773136863212,0.03,71068.0,71057.0,0.07036604]
[1773136865318,0.10035538,71068.0,71057.0,0.07036604]
[1773136865523,0.10035538,71068.0,71054.0,0.106987]
[1773136865524,0.03,71062.0,71054.0,0.07036901]
[1773136865739,0.39218587,71062.0,71053.0,0.00022]
[1773136865938,0.39218587,71062.0,71053.0,0.07058914]
[1773136866113,0.03,71060.0,71053.0,0.07058914]
[1773136867263,0.03,71059.0,71053.0,0.07058914]
[1773136868310,0.03,71058.0,71053.0,0.07058914]
[1773136868511,0.39524825,71079.0,71055.0,0.03661799]
[1773136868731,0.39524825,71079.0,71058.0,0.34641814]
[1773136868932,0.39524825,71079.0,71061.0,0.03661799]
[1773136869131,0.10762696,71079.0,71063.0,0.03661799]
[1773136869329,0.03,71077.0,71063.0,0.38303613]
[1773136869553,0.03,71077.0,71064.0,0.34641814]
[1773136869756,0.03,71077.0,71065.0,0.03208206]
[1773136869953,0.03,71075.0,71065.0,0.10243971]
[1773136870788,0.03,71075.0,71067.0,0.03208206]
[1773136870987,0.07034624,71079.0,71071.0,0.03208206]
[1773136870988,0.03,71078.0,71071.0,0.03208206]
[1773136871599,0.03,71078.0,71070.0,0.34641814]
[1773136871777,0.03,71078.0,71067.0,0.03208206]
[1773136871951,0.35490358,71078.0,71067.0,0.03208206]
[1773136872377,0.03,71076.0,71068.0,0.07035515]
[1773136873909,0.35691643,71075.0,71060.0,0.16556618]
[1773136874122,0.35490358,71068.0,71058.0,0.07036482]
[1773136874526,0.03,71066.0,71058.0,0.07036482]
[1773136874937,0.03,71066.0,71058.0,0.35762393]
[1773136875179,0.03,71066.0,71058.0,0.38970599]
[1773136875705,0.03,71065.0,71058.0,0.35762393]
[1773136876319,0.07035516,71068.0,71059.0,0.3785002]
[1773136876671,0.03,71067.0,71060.0,0.07036307]
[1773136876875,0.03,71067.0,71059.0,0.07036335]
[1773136877082,0.03201285,71069.0,71059.0,0.07036335]
[1773136877709,0.03,71068.0,71059.0,0.07036335]
[1773136879022,0.03,71068.0,71055.0,0.03208206]
[1773136879023,0.03,71064.0,71051.0,0.07037109]
[1773136879223,0.38691643,71062.0,71053.0,0.07058977]
[1773136879367,0.38691643,71062.0,71053.0,0.07058985]
[1773136880210,0.03,71060.0,71053.0,0.07058985]
[1773136881119,0.07035989,71064.0,71055.0,0.03208206]
[1773136881360,0.03,71063.0,71056.0,0.3785002]
[1773136883722,0.10036036,71063.0,71056.0,0.44886644]
[1773136884051,0.10036036,71063.0,71056.0,0.41678438]
[1773136884244,0.10036036,71063.0,71054.0,0.07036817]
[1773136884598,0.10036036,71063.0,71053.0,0.00022]
[1773136884798,0.03,71059.0,71053.0,0.00022]
[1773136885635,0.03,71059.0,71053.0,0.07058975]
[1773136885835,0.07036036,71063.0,71053.0,0.07058975]
[1773136885836,0.03,71058.0,71053.0,0.07058975]
[1773136886055,0.03,71058.0,71053.0,0.07098295]
[1773136886451,0.35490358,71058.0,71053.0,0.0006132]
[1773136886852,0.03,71058.0,71053.0,0.07098268]
[1773136887136,0.03,71059.0,71053.0,0.07098268]
[1773136888751,0.10036436,71059.0,71053.0,0.07098268]
[1773136889337,0.03,71057.0,71050.0,0.07060296]
[1773136889536,0.03,71057.0,71046.0,0.07059677]
[1773136889537,0.35490358,71057.0,71046.0,0.07059606]
[1773136889854,0.03,71057.0,71048.0,0.07599481]
[1773136890046,0.38691643,71057.0,71048.0,0.00562]
[1773136890253,0.38691643,71057.0,71048.0,0.07599477]
[1773136890447,0.07036436,71059.0,71045.0,0.00022]
[1773136890448,0.03,71053.0,71045.0,0.00022]
[1773136890656,0.03,71051.0,71045.0,0.07059776]
[1773136890862,0.1003726,71051.0,71045.0,0.00022]
[1773136891062,0.03,71051.0,71045.0,0.00022]
[1773136891866,0.03,71051.0,71045.0,0.07059774]
[1773136892060,0.03,71051.0,71045.0,0.07059789]
[1773136892338,0.38691643,71049.0,71044.0,0.000444]
[1773136892457,0.03201285,71047.0,71030.0,0.00022]
[1773136892667,0.03,71043.0,71032.0,0.07061453]
[1773136892862,0.03,71041.0,71032.0,0.07061453]
[1773136893282,0.03,71041.0,71032.0,0.41703267]
[1773136893493,0.03,71041.0,71037.0,0.001]
[1773136894032,0.03,71041.0,71032.0,0.41703267]
[1773136894228,0.03,71040.0,71032.0,0.41703267]
[1773136894956,0.03,71040.0,71007.0,0.000224]
[1773136894957,0.03,71040.0,71015.0,0.07040737]
[1773136895176,0.03,71036.0,71023.0,0.03208206]
[1773136895320,0.07037853,71045.0,71023.0,0.3236625]
[1773136895525,0.07037853,71045.0,71021.0,0.07062155]
[1773136895526,0.07037853,71045.0,71027.0,0.3236625]
[1773136895721,0.3763197,71044.0,71028.0,0.03208206]
[1773136895926,0.34430685,71044.0,71029.0,0.3236625]
[1773136896123,0.03,71043.0,71029.0,0.3241125]
[1773136896323,0.4063197,71043.0,71029.0,0.3241125]
[1773136896548,0.37430685,71043.0,71029.0,0.3241125]
[1773136896752,0.07037853,71045.0,71029.0,0.00045]
[1773136896753,0.4063197,71039.0,71029.0,0.00045]
[1773136896949,0.03,71037.0,71027.0,0.07039528]
[1773136897158,0.03,71035.0,71025.0,0.07062773]
[1773136897383,0.03,71035.0,71025.0,0.07061773]
[1773136897585,0.37430685,71035.0,71025.0,0.07084773]
[1773136897734,0.4063197,71035.0,71025.0,0.07084773]
[1773136898158,0.4063197,71035.0,71025.0,0.07062773]
[1773136898383,0.4063197,71035.0,71025.0,0.07039773]
[1773136899293,0.03,71033.0,71024.0,0.07039873]
[1773136899495,0.03,71033.0,71025.0,0.00022]
[1773136901003,0.40250668,71033.0,71025.0,0.00022]
[1773136901325,0.0703908,71032.0,71025.0,0.00044]
[1773136901531,0.07017968,71032.0,71025.0,0.00044]
[1773136901839,0.07017968,71032.0,71025.0,0.07083768]
[1773136904639,0.07038882,71035.0,71025.0,0.07083768]
[1773136904640,0.03,71035.0,71025.0,0.07083768]
[1773136905259,0.40250668,71035.0,71025.0,0.07083768]
[1773136905461,0.07038585,71037.0,71022.0,0.07040072]
[1773136905462,0.03,71031.0,71022.0,0.07040072]
[1773136905643,0.03,71029.0,71022.0,0.07040072]
[1773136905968,0.03,71029.0,71022.0,0.39406322]
[1773136906161,0.07038585,71037.0,71022.0,0.02696191]
[1773136906401,0.07038585,71037.0,71023.0,0.35062441]
[1773136906603,0.03,71046.0,71024.0,0.07039873]
[1773136906766,0.03,71040.0,71024.0,0.07039873]
[1773136906964,0.02819983,71035.0,71024.0,0.07039873]
[1773136907162,0.03,71032.0,71024.0,0.07039873]
[1773136907535,0.03,71032.0,71021.0,0.07039986]
[1773136908090,0.03,71028.0,71020.0,0.07602262]
[1773136908618,0.10039511,71028.0,71023.0,0.00022]
[1773136908825,0.47290179,71028.0,71023.0,0.00022]
[1773136909029,0.03,71026.0,71023.0,0.00022]
[1773136909873,0.40250668,71026.0,71020.0,0.00562]
[1773136910219,0.03,71025.0,71020.0,0.07602247]
[1773136910427,0.03,71025.0,71021.0,0.3236625]
[1773136911033,0.03,71025.0,71020.0,0.07602247]
[1773136911440,0.10039677,71026.0,71020.0,0.07602247]
[1773136912898,0.03,71025.0,71020.0,0.07602247]
[1773136913868,0.03,71024.0,71020.0,0.07602247]
[1773136914436,0.0703946,71029.0,71020.0,0.07602247]
[1773136914885,0.03,71028.0,71020.0,0.07602247]
[1773136915504,0.05690256,71028.0,71020.0,0.07624247]
[1773136916182,0.05690256,71028.0,71010.0,0.07063226]
[1773136916183,0.03,71026.0,71010.0,0.07063226]
[1773136916362,0.03,71026.0,71014.0,0.0268677]
[1773136916567,0.03,71026.0,71017.0,0.32631939]
[1773136916963,0.40361561,71034.0,71019.0,0.32631939]
[1773136916964,0.07039286,71030.0,71019.0,0.32631939]
[1773136917123,0.03,71029.0,71019.0,0.32631939]
[1773136919595,0.03,71027.0,71019.0,0.32631939]
[1773136919795,0.05690256,71027.0,71018.0,0.07040462]
[1773136920098,0.05690256,71027.0,71017.0,0.07040469]
[1773136920510,0.03,71027.0,71017.0,0.39672408]
[1773136920663,0.40360271,71047.0,71018.0,0.0268677]
[1773136920882,0.33322677,71059.0,71032.0,0.0268677]
[1773136921078,0.33322677,71059.0,71030.0,0.15851658]
[1773136921079,0.07036915,71054.0,71033.0,0.0268677]
[1773136921280,0.07036915,71054.0,71036.0,0.32631939]
[1773136921478,0.07036915,71054.0,71030.0,0.15851658]
[1773136921479,0.07036901,71056.0,71039.0,0.0268677]
[1773136921677,0.07036901,71056.0,71043.0,0.32631939]
[1773136921903,0.03,71055.0,71043.0,0.35318709]
[1773136922752,0.0002,71054.0,71043.0,0.35318709]
[1773136922961,0.0302,71054.0,71046.0,0.0268677]
[1773136923165,0.0302,71054.0,71047.0,0.35303953]
[1773136923366,0.0302,71054.0,71041.0,0.42824568]
[1773136923367,0.07035034,71073.0,71043.0,0.0268677]
[1773136923629,0.07083444,71069.0,71052.0,0.07037099]
[1773136923830,0.07083418,71069.0,71057.0,0.0268677]
[1773136923962,0.03,71068.0,71058.0,0.32783041]
[1773136924568,0.03,71068.0,71058.0,0.35469811]
[1773136925298,0.03,71068.0,71058.0,0.3545506]
[1773136926173,0.03,71067.0,71059.0,0.39819447]
[1773136926379,0.03,71067.0,71060.0,0.32783041]
[1773136926601,0.03,71067.0,71060.0,0.32768287]
[1773136926808,0.03,71067.0,71060.0,0.32168287]
[1773136927233,0.03,71067.0,71059.0,0.0268677]
[1773136927411,0.03,71066.0,71057.0,0.0703659]
[1773136929108,0.03,71066.0,71057.0,0.42506401]
[1773136931129,0.0002,71068.0,71059.0,0.0238644]
[1773136931330,0.0002,71068.0,71057.0,0.0703659]
[1773136931331,0.40027267,71077.0,71063.0,0.0238644]
[1773136931534,0.07034921,71074.0,71064.0,0.35169481]
[1773136932099,0.07057884,71075.0,71064.0,0.35169481]
[1773136932100,0.03,71073.0,71064.0,0.35169481]
[1773136932837,0.10035092,71073.0,71065.0,0.07035812]
[1773136934256,0.10035092,71073.0,71062.0,0.07036066]
[1773136934420,0.03,71071.0,71062.0,0.07036066]
[1773136934608,0.03,71071.0,71059.0,0.09422826]
[1773136934856,0.12469109,71065.0,71049.0,0.42206822]
[1773136935015,0.03,71063.0,71049.0,0.42206822]
[1773136935213,0.35956827,71063.0,71049.0,0.42206822]
[1773136935419,0.03,71057.0,71042.0,0.42207373]
[1773136935718,0.35956827,71053.0,71042.0,0.0703809]
[1773136936124,0.38390124,71053.0,71041.0,0.0703809]
[1773136936326,0.03,71051.0,71039.0,0.07038304]
[1773136936657,0.03,71049.0,71039.0,0.07038304]
[1773136936879,0.03,71049.0,71030.0,0.07039183]
[1773136936880,0.35956827,71047.0,71030.0,0.0706118]
[1773136937156,0.35956827,71045.0,71031.0,0.42208588]
[1773136939148,0.35956827,71045.0,71031.0,0.09425547]
[1773136939358,0.42994666,71045.0,71032.0,0.35169481]
[1773136941618,0.42994666,71045.0,71033.0,0.07038981]
[1773136944114,0.10037839,71045.0,71033.0,0.07038981]
[1773136944316,0.07036396,71060.0,71037.0,0.0238644]
[1773136944523,0.07036396,71060.0,71033.0,0.07038981]
[1773136944524,0.07036396,71060.0,71040.0,0.32783041]
[1773136944761,0.07056208,71062.0,71045.0,0.32783041]
[1773136945115,0.32956827,71059.0,71036.0,0.32783041]
[1773136945380,0.07056208,71062.0,71033.0,0.07038981]
[1773136945381,0.03,71054.0,71037.0,0.32783041]
[1773136945580,0.03,71054.0,71033.0,0.07038981]
[1773136945581,0.03,71054.0,71041.0,0.32783041]
[1773136945757,0.03,71054.0,71042.0,0.35169481]
[1773136945966,0.03,71052.0,71046.0,0.07037693]
[1773136946339,0.03,71052.0,71043.0,0.07037977]
[1773136946754,0.03,71052.0,71042.0,0.07038038]
[1773136947204,0.03,71052.0,71042.0,0.39821079]
[1773136947562,0.03,71052.0,71043.0,0.001]
[1773136948349,0.03,71050.0,71043.0,0.07137954]
[1773136948797,0.03,71050.0,71043.0,0.07037954]
[1773136950218,0.03,71050.0,71044.0,0.35169481]
[1773136950459,0.03,71048.0,71044.0,0.35169481]
[1773136950692,0.03,71048.0,71043.0,0.07037954]
[1773136950916,0.03,71048.0,71043.0,0.07137954]
[1773136952100,0.03,71048.0,71042.0,0.07038038]
[1773136952553,0.03,71048.0,71038.0,0.07060473]